[Event "*** Titled Tuesday Blitz"]
[Site "Chess.com"]
[Date "2020.12.29"]
[Round "2"]
[White "Alexander_Moskalenko"]
[Black "TregubovP"]
[Result "1/2-1/2"]
[WhiteElo "2836"]
[BlackElo "2559"]
[TimeControl "180+1"]
[EndTime "10:18:48 PST"]
[Termination "Game drawn - insufficient material"]

1. c4 {[%clk 0:02:57.1]} 1... c5 {[%clk 0:02:40]} 2. Nf3 {[%clk 0:02:49.9]} 2...
Nc6 {[%clk 0:02:39.8]} 3. Nc3 {[%clk 0:02:49.7]} 3... Nf6 {[%clk 0:02:39.4]} 4.
e3 {[%clk 0:02:49.4]} 4... e6 {[%clk 0:02:31.9]} 5. d4 {[%clk 0:02:49]} 5... d5
{[%clk 0:02:32.5]} 6. cxd5 {[%clk 0:02:48.6]} 6... exd5 {[%clk 0:02:31.6]} 7.
Bb5 {[%clk 0:02:48.5]} 7... Bd6 {[%clk 0:02:31]} 8. dxc5 {[%clk 0:02:48.7]} 8...
Bxc5 {[%clk 0:02:31.4]} 9. O-O {[%clk 0:02:46.9]} 9... O-O {[%clk 0:02:30.9]}
10. b3 {[%clk 0:02:46.6]} 10... Bg4 {[%clk 0:02:29.4]} 11. Bb2 {[%clk
0:02:44.4]} 11... d4 {[%clk 0:02:21]} 12. Na4 {[%clk 0:02:40.6]} 12... Qa5
{[%clk 0:01:42.7]} 13. Bxc6 {[%clk 0:02:38.4]} 13... bxc6 {[%clk 0:01:42.9]} 14.
Nxc5 {[%clk 0:02:38.8]} 14... Qxc5 {[%clk 0:01:41.5]} 15. Qxd4 {[%clk
0:02:37.9]} 15... Qh5 {[%clk 0:01:31.3]} 16. Qf4 {[%clk 0:02:35.5]} 16... Nd5
{[%clk 0:01:28.2]} 17. Qg3 {[%clk 0:02:35.1]} 17... f6 {[%clk 0:01:25.2]} 18.
Rac1 {[%clk 0:02:23.5]} 18... Rac8 {[%clk 0:01:24.1]} 19. Rc5 {[%clk 0:02:23]}
19... Bxf3 {[%clk 0:01:13.1]} 20. Qxf3 {[%clk 0:02:23.1]} 20... Qxf3 {[%clk
0:01:13.2]} 21. gxf3 {[%clk 0:02:24]} 21... Nb4 {[%clk 0:01:13.4]} 22. Rc4
{[%clk 0:02:14.9]} 22... Nd3 {[%clk 0:01:11.1]} 23. Ba3 {[%clk 0:02:15]} 23...
Rfd8 {[%clk 0:01:08.4]} 24. f4 {[%clk 0:02:14.2]} 24... Rd5 {[%clk 0:00:59.8]}
25. Rd1 {[%clk 0:02:05.6]} 25... Nxf4 {[%clk 0:00:58]} 26. Rxd5 {[%clk
0:02:03.7]} 26... Nxd5 {[%clk 0:00:57.9]} 27. Ra4 {[%clk 0:02:03.7]} 27... Rc7
{[%clk 0:00:57.8]} 28. Bd6 {[%clk 0:02:02.9]} 28... Rd7 {[%clk 0:00:55.9]} 29.
Bc5 {[%clk 0:02:03.5]} 29... Nc3 {[%clk 0:00:56.5]} 30. Ra6 {[%clk 0:02:01.8]}
30... Rd1+ {[%clk 0:00:49.6]} 31. Kg2 {[%clk 0:02:02]} 31... Ne4 {[%clk
0:00:46.1]} 32. Bxa7 {[%clk 0:01:54]} 32... Rd2 {[%clk 0:00:45.2]} 33. a4 {[%clk
0:01:54.6]} 33... Rxf2+ {[%clk 0:00:44.5]} 34. Kg1 {[%clk 0:01:55.2]} 34... Rb2
{[%clk 0:00:41.8]} 35. Rxc6 {[%clk 0:01:52.6]} 35... Rxb3 {[%clk 0:00:42]} 36.
a5 {[%clk 0:01:53.2]} 36... Ra3 {[%clk 0:00:42]} 37. a6 {[%clk 0:01:53.7]} 37...
Kf7 {[%clk 0:00:39.2]} 38. Bd4 {[%clk 0:01:52.7]} 38... Ng5 {[%clk 0:00:35.7]}
39. Kg2 {[%clk 0:01:44.1]} 39... Ne6 {[%clk 0:00:29.3]} 40. a7 {[%clk
0:01:23.7]} 40... Nxd4 {[%clk 0:00:25.6]} 41. Rc7+ {[%clk 0:01:23.9]} 41... Ke6
{[%clk 0:00:21.9]} 42. exd4 {[%clk 0:01:24.5]} 42... g5 {[%clk 0:00:21.3]} 43.
Rxh7 {[%clk 0:01:22.6]} 43... f5 {[%clk 0:00:20.3]} 44. h3 {[%clk 0:01:01.5]}
44... f4 {[%clk 0:00:19.2]} 45. Rh5 {[%clk 0:00:56.8]} 45... Kf5 {[%clk
0:00:15.4]} 46. h4 {[%clk 0:00:56.8]} 46... Rxa7 {[%clk 0:00:15.2]} 47. Rxg5+
{[%clk 0:00:56.3]} 47... Ke4 {[%clk 0:00:15.7]} 48. d5 {[%clk 0:00:56.9]} 48...
Ra2+ {[%clk 0:00:15.3]} 49. Kh3 {[%clk 0:00:57.1]} 49... Kf3 {[%clk 0:00:11]}
50. h5 {[%clk 0:00:53.1]} 50... Ra1 {[%clk 0:00:10.8]} 51. Rg2 {[%clk
0:00:53.2]} 51... Rh1+ {[%clk 0:00:10]} 52. Rh2 {[%clk 0:00:53.5]} 52... Rd1
{[%clk 0:00:10.6]} 53. h6 {[%clk 0:00:50.2]} 53... Rxd5 {[%clk 0:00:10.3]} 54.
Kh4 {[%clk 0:00:51]} 54... Ke3 {[%clk 0:00:07]} 55. h7 {[%clk 0:00:43.6]} 55...
Rd8 {[%clk 0:00:07.1]} 56. Kg5 {[%clk 0:00:43.9]} 56... f3 {[%clk 0:00:06.6]}
57. Rh3 {[%clk 0:00:34.9]} 57... Ke2 {[%clk 0:00:06.2]} 58. h8=Q {[%clk
0:00:35.7]} 58... Rxh8 {[%clk 0:00:05]} 59. Rxh8 {[%clk 0:00:36.6]} 59... f2
{[%clk 0:00:05.4]} 60. Re8+ {[%clk 0:00:37.5]} 60... Kd2 {[%clk 0:00:05.6]} 61.
Rf8 {[%clk 0:00:37.7]} 61... Ke2 {[%clk 0:00:05.9]} 62. Re8+ {[%clk 0:00:38.5]}
62... Kd2 {[%clk 0:00:06.2]} 63. Rf8 {[%clk 0:00:39.4]} 63... Ke2 {[%clk
0:00:06.7]} 64. Kh4 {[%clk 0:00:40.3]} 64... f1=Q {[%clk 0:00:06.5]} 65. Rxf1
{[%clk 0:00:41]} 65... Kxf1 {[%clk 0:00:06.7]} 1/2-1/2

[Event "*** Titled Tuesday Blitz"]
[Site "Chess.com"]
[Date "2020.12.29"]
[Round "2"]
[White "No_t_ime_to_die"]
[Black "ShapkinAnatoliy"]
[Result "0-1"]
[WhiteElo "2476"]
[BlackElo "2702"]
[TimeControl "180+1"]
[EndTime "10:18:49 PST"]
[Termination "ShapkinAnatoliy won by resignation"]

1. e4 {[%clk 0:03:00.9]} 1... e5 {[%clk 0:02:59.8]} 2. Nf3 {[%clk 0:02:59.2]}
2... Nc6 {[%clk 0:03:00.3]} 3. d4 {[%clk 0:02:56.6]} 3... exd4 {[%clk
0:02:59.9]} 4. Bc4 {[%clk 0:02:56.8]} 4... Nf6 {[%clk 0:02:59.7]} 5. e5 {[%clk
0:02:54.7]} 5... d5 {[%clk 0:02:59.9]} 6. Bb5 {[%clk 0:02:53.6]} 6... Ne4 {[%clk
0:03:00.3]} 7. Nxd4 {[%clk 0:02:52.9]} 7... Bd7 {[%clk 0:02:56.3]} 8. Bxc6
{[%clk 0:02:51.9]} 8... bxc6 {[%clk 0:02:55.8]} 9. O-O {[%clk 0:02:52]} 9... Be7
{[%clk 0:02:55.3]} 10. f4 {[%clk 0:02:44.2]} 10... O-O {[%clk 0:02:37.3]} 11. f5
{[%clk 0:02:42.7]} 11... Re8 {[%clk 0:02:37.4]} 12. e6 {[%clk 0:02:41]} 12...
Bc8 {[%clk 0:02:08.4]} 13. Nxc6 {[%clk 0:02:10.7]} 13... Bc5+ {[%clk 0:02:07]}
14. Nd4 {[%clk 0:02:07.1]} 14... fxe6 {[%clk 0:02:00.7]} 15. fxe6 {[%clk
0:02:07.1]} 15... Bxe6 {[%clk 0:02:00]} 16. Be3 {[%clk 0:02:05.5]} 16... Qd6
{[%clk 0:01:42.4]} 17. Nd2 {[%clk 0:01:59.2]} 17... Nxd2 {[%clk 0:01:36.5]} 18.
Qxd2 {[%clk 0:02:00.1]} 18... Bd7 {[%clk 0:01:36.6]} 19. Kh1 {[%clk 0:01:55.3]}
19... Bb6 {[%clk 0:01:29.2]} 20. b4 {[%clk 0:01:50.2]} 20... Re4 {[%clk
0:01:17.2]} 21. Qf2 {[%clk 0:01:35.7]} 21... Qe7 {[%clk 0:01:16.9]} 22. Rae1
{[%clk 0:01:33.1]} 22... Re8 {[%clk 0:01:16]} 23. c3 {[%clk 0:01:28]} 23... h6
{[%clk 0:01:09.6]} 24. Bd2 {[%clk 0:01:24.6]} 24... c5 {[%clk 0:00:41.2]} 25.
Rxe4 {[%clk 0:00:36.5]} 25... dxe4 {[%clk 0:00:38.3]} 26. Nf5 {[%clk 0:00:37.2]}
26... Bxf5 {[%clk 0:00:35.9]} 27. Qxf5 {[%clk 0:00:38.1]} 27... e3 {[%clk
0:00:31.2]} 28. Re1 {[%clk 0:00:20.9]} 28... cxb4 {[%clk 0:00:21.1]} 29. cxb4
{[%clk 0:00:19.3]} 29... Qf7 {[%clk 0:00:09.8]} 30. Qxf7+ {[%clk 0:00:07.1]}
30... Kxf7 {[%clk 0:00:10.7]} 31. Bc3 {[%clk 0:00:07.7]} 31... e2 {[%clk
0:00:11.1]} 32. Rb1 {[%clk 0:00:05.5]} 32... Bf2 {[%clk 0:00:10.8]} 33. Be1
{[%clk 0:00:05.3]} 33... Bd4 {[%clk 0:00:04.9]} 34. g3 {[%clk 0:00:04.9]} 34...
Ke6 {[%clk 0:00:04.7]} 35. Kg2 {[%clk 0:00:05.7]} 35... Kd5 {[%clk 0:00:05.3]}
36. Kf3 {[%clk 0:00:05.5]} 36... Kc4 {[%clk 0:00:04.3]} 37. Bd2 {[%clk
0:00:02.8]} 37... Kd3 {[%clk 0:00:03.7]} 38. Be1 {[%clk 0:00:02.6]} 38... Rf8+
{[%clk 0:00:03.9]} 39. Kg2 {[%clk 0:00:03.3]} 39... Rf1 {[%clk 0:00:04.3]} 40.
Rb3+ {[%clk 0:00:02.5]} 40... Ke4 {[%clk 0:00:04.5]} 41. Rb1 {[%clk 0:00:02.9]}
41... Bc3 {[%clk 0:00:04.5]} 42. Rc1 {[%clk 0:00:01.3]} 42... Bxe1 {[%clk
0:00:03.7]} 43. Rc4+ {[%clk 0:00:02]} 43... Kd3 {[%clk 0:00:03.8]} 44. Rc7
{[%clk 0:00:02.1]} 44... Bc3 {[%clk 0:00:04.3]} 45. Rd7+ {[%clk 0:00:02.7]}
45... Bd4 {[%clk 0:00:04.6]} 46. Re7 {[%clk 0:00:02.4]} 46... e1=Q {[%clk
0:00:05]} 47. Rxe1 {[%clk 0:00:03.1]} 47... Rxe1 {[%clk 0:00:05.9]} 0-1

[Event "*** Titled Tuesday Blitz"]
[Site "Chess.com"]
[Date "2020.12.29"]
[Round "2"]
[White "Snowflake"]
[Black "Grammnik"]
[Result "0-1"]
[WhiteElo "2457"]
[BlackElo "2309"]
[TimeControl "180+1"]
[EndTime "10:18:49 PST"]
[Termination "Grammnik won by checkmate"]

1. Nf3 {[%clk 0:03:00.9]} 1... Nf6 {[%clk 0:02:59.4]} 2. c4 {[%clk 0:02:58]}
2... c5 {[%clk 0:02:59.3]} 3. g3 {[%clk 0:02:56.4]} 3... d5 {[%clk 0:02:59.7]}
4. Bg2 {[%clk 0:02:57.3]} 4... Nc6 {[%clk 0:02:58.8]} 5. cxd5 {[%clk 0:02:58]}
5... Nxd5 {[%clk 0:02:58.8]} 6. O-O {[%clk 0:02:57.9]} 6... e5 {[%clk
0:02:57.7]} 7. d3 {[%clk 0:02:53.6]} 7... Be7 {[%clk 0:02:55.7]} 8. Nc3 {[%clk
0:02:52]} 8... Be6 {[%clk 0:02:53.6]} 9. Ng5 {[%clk 0:02:30.7]} 9... Bxg5 {[%clk
0:02:45.2]} 10. Bxg5 {[%clk 0:02:31.6]} 10... f6 {[%clk 0:02:43.8]} 11. Bd2
{[%clk 0:02:29.6]} 11... O-O {[%clk 0:02:43]} 12. Rc1 {[%clk 0:02:20.2]} 12...
Qd7 {[%clk 0:02:41.1]} 13. a3 {[%clk 0:02:19.1]} 13... Rac8 {[%clk 0:02:34.5]}
14. Ne4 {[%clk 0:01:41.5]} 14... b6 {[%clk 0:02:33.7]} 15. h4 {[%clk 0:01:41.3]}
15... Kh8 {[%clk 0:02:32.2]} 16. e3 {[%clk 0:01:37.5]} 16... Bh3 {[%clk
0:02:31.4]} 17. Qe2 {[%clk 0:01:31.5]} 17... Rfd8 {[%clk 0:02:19]} 18. Rfd1
{[%clk 0:01:30.8]} 18... Bxg2 {[%clk 0:02:07.9]} 19. Kxg2 {[%clk 0:01:31.7]}
19... h6 {[%clk 0:02:02.3]} 20. h5 {[%clk 0:01:29.4]} 20... f5 {[%clk
0:01:59.9]} 21. Nc3 {[%clk 0:01:26.7]} 21... Nf6 {[%clk 0:01:58.7]} 22. Be1
{[%clk 0:01:21.9]} 22... Qb7 {[%clk 0:01:51.4]} 23. Kg1 {[%clk 0:01:21.2]} 23...
Qf7 {[%clk 0:01:47.5]} 24. Rb1 {[%clk 0:00:53.1]} 24... Qb3 {[%clk 0:01:10.1]}
25. Kg2 {[%clk 0:00:46.6]} 25... e4 {[%clk 0:01:07.9]} 26. dxe4 {[%clk
0:00:44.9]} 26... fxe4 {[%clk 0:01:06.9]} 27. Rxd8+ {[%clk 0:00:24.8]} 27...
Rxd8 {[%clk 0:01:04.7]} 28. Rd1 {[%clk 0:00:25.7]} 28... Rxd1 {[%clk 0:01:02.6]}
29. Nxd1 {[%clk 0:00:26.6]} 29... Qf7 {[%clk 0:01:00.3]} 30. Bc3 {[%clk
0:00:25.4]} 30... Qxh5 {[%clk 0:00:54.6]} 31. Qxh5 {[%clk 0:00:24.4]} 31... Nxh5
{[%clk 0:00:54.4]} 32. b4 {[%clk 0:00:25.3]} 32... cxb4 {[%clk 0:00:53.1]} 33.
axb4 {[%clk 0:00:26.2]} 33... a5 {[%clk 0:00:53.2]} 34. b5 {[%clk 0:00:25]}
34... Na7 {[%clk 0:00:52.7]} 35. Bd4 {[%clk 0:00:25.6]} 35... Nxb5 {[%clk
0:00:52.8]} 36. Bxb6 {[%clk 0:00:24.8]} 36... a4 {[%clk 0:00:53.3]} 37. Bd4
{[%clk 0:00:15.6]} 37... Nf6 {[%clk 0:00:49.8]} 38. Ba1 {[%clk 0:00:12]} 38...
Nd5 {[%clk 0:00:49.3]} 39. f3 {[%clk 0:00:11.4]} 39... exf3+ {[%clk 0:00:46.6]}
40. Kxf3 {[%clk 0:00:12.3]} 40... Kg8 {[%clk 0:00:46.7]} 41. e4 {[%clk
0:00:12.2]} 41... Nb4 {[%clk 0:00:46.6]} 42. Ne3 {[%clk 0:00:08.1]} 42... a3
{[%clk 0:00:45.2]} 43. Nc4 {[%clk 0:00:07.7]} 43... Nc2 {[%clk 0:00:43.2]} 44.
Be5 {[%clk 0:00:05.6]} 44... a2 {[%clk 0:00:42.1]} 45. Nd2 {[%clk 0:00:01.6]}
45... Nbd4+ {[%clk 0:00:41.4]} 46. Bxd4 {[%clk 0:00:02]} 46... Nxd4+ {[%clk
0:00:41.4]} 47. Kg4 {[%clk 0:00:02.9]} 47... a1=Q {[%clk 0:00:41.8]} 48. Nc4
{[%clk 0:00:03.8]} 48... Qc3 {[%clk 0:00:41.4]} 49. Ne5 {[%clk 0:00:03.6]} 49...
Ne6 {[%clk 0:00:39.4]} 50. Kf5 {[%clk 0:00:03.5]} 50... Ng5 {[%clk 0:00:38.1]}
51. Ng6 {[%clk 0:00:03.2]} 51... Qf6+ {[%clk 0:00:36.3]} 52. Kg4 {[%clk
0:00:03]} 52... Qxg6 {[%clk 0:00:36.8]} 53. e5 {[%clk 0:00:03.9]} 53... Qe4+
{[%clk 0:00:36.7]} 54. Kh5 {[%clk 0:00:01.4]} 54... Qe2+ {[%clk 0:00:35.7]} 55.
Kh4 {[%clk 0:00:01.9]} 55... Qxe5 {[%clk 0:00:33]} 56. Kg4 {[%clk 0:00:02.8]}
56... Qe4+ {[%clk 0:00:32.1]} 57. Kh5 {[%clk 0:00:03.7]} 57... Kh7 {[%clk
0:00:31.1]} 58. g4 {[%clk 0:00:04.6]} 58... Qh1# {[%clk 0:00:30.3]} 0-1

[Event "*** Titled Tuesday Blitz"]
[Site "Chess.com"]
[Date "2020.12.29"]
[Round "2"]
[White "DenLaz"]
[Black "Natalya_Buksa"]
[Result "1-0"]
[WhiteElo "2828"]
[BlackElo "2536"]
[TimeControl "180+1"]
[EndTime "10:18:50 PST"]
[Termination "DenLaz won by checkmate"]

1. d4 {[%clk 0:02:59.7]} 1... d5 {[%clk 0:02:59.9]} 2. c4 {[%clk 0:03:00]} 2...
e6 {[%clk 0:03:00.5]} 3. Nf3 {[%clk 0:02:59.6]} 3... Nf6 {[%clk 0:03:00.4]} 4.
Nc3 {[%clk 0:02:59.6]} 4... Be7 {[%clk 0:02:57.8]} 5. Bf4 {[%clk 0:02:58.1]}
5... O-O {[%clk 0:02:57.2]} 6. e3 {[%clk 0:02:58.2]} 6... b6 {[%clk 0:02:57.6]}
7. Bd3 {[%clk 0:02:54.6]} 7... dxc4 {[%clk 0:02:56.4]} 8. Bxc4 {[%clk
0:02:53.5]} 8... Bb7 {[%clk 0:02:56.3]} 9. O-O {[%clk 0:02:52.5]} 9... a6 {[%clk
0:02:56.8]} 10. a4 {[%clk 0:02:42.3]} 10... c5 {[%clk 0:02:50.6]} 11. Qe2 {[%clk
0:02:41.7]} 11... Nc6 {[%clk 0:02:48.4]} 12. Rfd1 {[%clk 0:02:31.6]} 12... cxd4
{[%clk 0:02:36.5]} 13. Nxd4 {[%clk 0:02:07.1]} 13... Nxd4 {[%clk 0:02:36.3]} 14.
Rxd4 {[%clk 0:02:08]} 14... Qe8 {[%clk 0:02:36.4]} 15. Rc1 {[%clk 0:02:01.1]}
15... Bc5 {[%clk 0:02:29.3]} 16. Rdd1 {[%clk 0:01:59.7]} 16... Qc6 {[%clk
0:01:58]} 17. f3 {[%clk 0:01:58.6]} 17... h6 {[%clk 0:01:49.4]} 18. Kh1 {[%clk
0:01:54.4]} 18... Rfe8 {[%clk 0:01:43.2]} 19. e4 {[%clk 0:01:46.9]} 19... Nh5
{[%clk 0:01:34.5]} 20. Be5 {[%clk 0:01:37]} 20... f6 {[%clk 0:01:14.1]} 21. Bd4
{[%clk 0:01:29.4]} 21... Kh8 {[%clk 0:00:55.3]} 22. Qe3 {[%clk 0:00:53.9]} 22...
Qc7 {[%clk 0:00:48.7]} 23. Bxc5 {[%clk 0:00:51.5]} 23... bxc5 {[%clk 0:00:48.8]}
24. Ne2 {[%clk 0:00:48.7]} 24... Rad8 {[%clk 0:00:44.2]} 25. g4 {[%clk
0:00:44.6]} 25... f5 {[%clk 0:00:38.7]} 26. gxh5 {[%clk 0:00:42.2]} 26... fxe4
{[%clk 0:00:39.1]} 27. fxe4 {[%clk 0:00:42.8]} 27... Qe5 {[%clk 0:00:38.8]} 28.
Ng3 {[%clk 0:00:35.9]} 28... Rd4 {[%clk 0:00:35.6]} 29. Rxd4 {[%clk 0:00:35.1]}
29... cxd4 {[%clk 0:00:36.5]} 30. Qe2 {[%clk 0:00:35]} 30... Rf8 {[%clk
0:00:35.5]} 31. Bd3 {[%clk 0:00:33.9]} 31... a5 {[%clk 0:00:24.5]} 32. Rf1
{[%clk 0:00:32]} 32... Rc8 {[%clk 0:00:24.6]} 33. Qd2 {[%clk 0:00:31]} 33... Bc6
{[%clk 0:00:14.5]} 34. Rc1 {[%clk 0:00:28.7]} 34... Qd6 {[%clk 0:00:13.4]} 35.
b3 {[%clk 0:00:16.8]} 35... Rf8 {[%clk 0:00:12.4]} 36. Kg1 {[%clk 0:00:16.7]}
36... Bb7 {[%clk 0:00:06.2]} 37. Rf1 {[%clk 0:00:17]} 37... Rxf1+ {[%clk
0:00:04.8]} 38. Bxf1 {[%clk 0:00:17.9]} 38... Qc5 {[%clk 0:00:03.7]} 39. Qf2
{[%clk 0:00:17.6]} 39... e5 {[%clk 0:00:03.4]} 40. Bc4 {[%clk 0:00:17.2]} 40...
Bc6 {[%clk 0:00:02.7]} 41. Qf7 {[%clk 0:00:16.6]} 41... d3+ {[%clk 0:00:01.6]}
42. Kg2 {[%clk 0:00:17]} 42... Bd5 {[%clk 0:00:02.2]} 43. Bxd5 {[%clk
0:00:14.4]} 43... Qc2+ {[%clk 0:00:01.9]} 44. Kh3 {[%clk 0:00:13.7]} 44... Qc8+
{[%clk 0:00:02.5]} 45. Be6 {[%clk 0:00:13.6]} 45... Qd8 {[%clk 0:00:02.4]} 46.
Nf1 {[%clk 0:00:13.7]} 46... d2 {[%clk 0:00:02.5]} 47. Nxd2 {[%clk 0:00:14]}
47... Qd3+ {[%clk 0:00:02.9]} 48. Nf3 {[%clk 0:00:14.3]} 48... Qf1+ {[%clk
0:00:02.8]} 49. Kg3 {[%clk 0:00:13.6]} 49... Qxf3+ {[%clk 0:00:01]} 50. Kxf3
{[%clk 0:00:13.1]} 50... Kh7 {[%clk 0:00:01.4]} 51. Qg8# {[%clk 0:00:13.6]} 1-0

[Event "*** Titled Tuesday Blitz"]
[Site "Chess.com"]
[Date "2020.12.29"]
[Round "2"]
[White "ulkaf961"]
[Black "brunomorado"]
[Result "1-0"]
[WhiteElo "2255"]
[BlackElo "2424"]
[TimeControl "180+1"]
[EndTime "10:18:52 PST"]
[Termination "ulkaf961 won by resignation"]

1. d4 {[%clk 0:03:00.9]} 1... d5 {[%clk 0:02:59.8]} 2. c4 {[%clk 0:03:00.7]}
2... c6 {[%clk 0:02:59.7]} 3. cxd5 {[%clk 0:02:58.4]} 3... cxd5 {[%clk
0:03:00.6]} 4. Bf4 {[%clk 0:02:55.3]} 4... Nf6 {[%clk 0:02:59.9]} 5. Nc3 {[%clk
0:02:53.3]} 5... Nc6 {[%clk 0:02:59.9]} 6. e3 {[%clk 0:02:51.4]} 6... a6 {[%clk
0:02:58.9]} 7. Bd3 {[%clk 0:02:07.8]} 7... Bg4 {[%clk 0:02:55.4]} 8. Nge2 {[%clk
0:02:00.5]} 8... e6 {[%clk 0:02:54.9]} 9. O-O {[%clk 0:01:58.4]} 9... Bd6 {[%clk
0:02:54.7]} 10. Bxd6 {[%clk 0:01:52.3]} 10... Qxd6 {[%clk 0:02:55.6]} 11. f4
{[%clk 0:01:52.5]} 11... O-O {[%clk 0:02:40.2]} 12. a3 {[%clk 0:01:46.9]} 12...
Rac8 {[%clk 0:02:34.3]} 13. Qe1 {[%clk 0:01:45.1]} 13... Bxe2 {[%clk 0:02:27.5]}
14. Qxe2 {[%clk 0:01:33.9]} 14... b5 {[%clk 0:02:23.3]} 15. g4 {[%clk
0:01:32.7]} 15... Nd7 {[%clk 0:02:21.7]} 16. Rf3 {[%clk 0:01:30.2]} 16... f6
{[%clk 0:02:18.2]} 17. Rh3 {[%clk 0:01:27.7]} 17... g6 {[%clk 0:02:09.9]} 18.
Qf2 {[%clk 0:01:27.3]} 18... Qe7 {[%clk 0:02:00.3]} 19. f5 {[%clk 0:01:21.9]}
19... exf5 {[%clk 0:01:34.4]} 20. gxf5 {[%clk 0:00:58.9]} 20... g5 {[%clk
0:01:33.8]} 21. Nxd5 {[%clk 0:00:58.5]} 21... Qf7 {[%clk 0:01:27.2]} 22. e4
{[%clk 0:00:58.6]} 22... Rfd8 {[%clk 0:01:19.4]} 23. Bb1 {[%clk 0:00:54.9]}
23... Nf8 {[%clk 0:01:17.2]} 24. Ba2 {[%clk 0:00:53.7]} 24... Kh8 {[%clk
0:01:07.2]} 25. Nb6 {[%clk 0:00:45]} 25... Qa7 {[%clk 0:00:54]} 26. Nxc8 {[%clk
0:00:44]} 26... Rxc8 {[%clk 0:00:52.6]} 27. d5 {[%clk 0:00:42.6]} 27... Nd4
{[%clk 0:00:51.9]} 28. Rd1 {[%clk 0:00:36.3]} 28... Ne2+ {[%clk 0:00:43.9]} 29.
Kf1 {[%clk 0:00:35.9]} 29... Qxf2+ {[%clk 0:00:41]} 30. Kxf2 {[%clk 0:00:36]}
30... Nf4 {[%clk 0:00:41.9]} 31. Rc3 {[%clk 0:00:35.1]} 31... Re8 {[%clk
0:00:38.4]} 32. d6 {[%clk 0:00:33]} 32... Rxe4 {[%clk 0:00:18.1]} 33. d7 {[%clk
0:00:30.5]} 33... Nxd7 {[%clk 0:00:18.1]} 34. Rc8+ {[%clk 0:00:20.2]} 34... Kg7
{[%clk 0:00:18.1]} 35. Rxd7+ {[%clk 0:00:20.3]} 35... Kh6 {[%clk 0:00:18.5]} 36.
Rh8 {[%clk 0:00:20.2]} 36... g4 {[%clk 0:00:14.7]} 37. Be6 {[%clk 0:00:15.6]}
37... Re2+ {[%clk 0:00:13.2]} 38. Kf1 {[%clk 0:00:15.8]} 38... Rxe6 {[%clk
0:00:06.4]} 39. fxe6 {[%clk 0:00:15.6]} 39... Nxe6 {[%clk 0:00:07.3]} 40. Rhxh7+
{[%clk 0:00:14.4]} 40... Kg5 {[%clk 0:00:08.2]} 41. Rhe7 {[%clk 0:00:14.7]}
41... Nf4 {[%clk 0:00:08.2]} 42. Ra7 {[%clk 0:00:14.4]} 42... Nd3 {[%clk
0:00:08]} 43. Rxa6 {[%clk 0:00:14.3]} 43... Nxb2 {[%clk 0:00:08.4]} 44. Rb7
{[%clk 0:00:14.2]} 44... Nc4 {[%clk 0:00:07.1]} 45. Rxb5+ {[%clk 0:00:14.3]}
45... Kh4 {[%clk 0:00:07.6]} 46. Rb4 {[%clk 0:00:13.9]} 46... Nd2+ {[%clk
0:00:07.7]} 47. Ke2 {[%clk 0:00:13.9]} 47... Nf3 {[%clk 0:00:08.6]} 48. Rxf6
{[%clk 0:00:12]} 48... Nxh2 {[%clk 0:00:08.7]} 49. Rh6+ {[%clk 0:00:12.3]} 49...
Kg3 {[%clk 0:00:09.1]} 50. Rxh2 {[%clk 0:00:12.5]} 50... Kxh2 {[%clk 0:00:10]}
51. Rxg4 {[%clk 0:00:12.7]} 1-0

[Event "*** Titled Tuesday Blitz"]
[Site "Chess.com"]
[Date "2020.12.29"]
[Round "2"]
[White "anon481216"]
[Black "Denis_Palkovich"]
[Result "0-1"]
[WhiteElo "2430"]
[BlackElo "2273"]
[TimeControl "180+1"]
[EndTime "10:18:54 PST"]
[Termination "Denis_Palkovich won on time"]

1. d4 {[%clk 0:03:00.9]} 1... d5 {[%clk 0:02:56.2]} 2. c4 {[%clk 0:03:00.7]}
2... Bf5 {[%clk 0:02:52.3]} 3. cxd5 {[%clk 0:02:54.3]} 3... Bxb1 {[%clk
0:02:51.2]} 4. Qa4+ {[%clk 0:02:54.6]} 4... Qd7 {[%clk 0:02:50.4]} 5. Qxd7+
{[%clk 0:02:53.9]} 5... Nxd7 {[%clk 0:02:51.3]} 6. Rxb1 {[%clk 0:02:53.9]} 6...
Ngf6 {[%clk 0:02:51.7]} 7. Nf3 {[%clk 0:02:53]} 7... g6 {[%clk 0:02:50.7]} 8. g3
{[%clk 0:02:44.7]} 8... Bg7 {[%clk 0:02:50]} 9. Bg2 {[%clk 0:02:44.6]} 9... Nxd5
{[%clk 0:02:49.4]} 10. O-O {[%clk 0:02:39]} 10... c6 {[%clk 0:02:47.9]} 11. e4
{[%clk 0:02:35.3]} 11... N5b6 {[%clk 0:02:23.7]} 12. b4 {[%clk 0:02:34.7]} 12...
O-O {[%clk 0:02:16.4]} 13. Bf4 {[%clk 0:02:28.3]} 13... Rfe8 {[%clk 0:02:14.9]}
14. Rfd1 {[%clk 0:02:21.5]} 14... e5 {[%clk 0:02:11.1]} 15. dxe5 {[%clk
0:02:21.2]} 15... Nxe5 {[%clk 0:02:11.1]} 16. Nxe5 {[%clk 0:02:14.7]} 16... Bxe5
{[%clk 0:02:12]} 17. Bxe5 {[%clk 0:02:14.7]} 17... Rxe5 {[%clk 0:02:12.9]} 18.
f4 {[%clk 0:02:14.8]} 18... Re7 {[%clk 0:02:01.1]} 19. Rd4 {[%clk 0:02:13.4]}
19... Rd7 {[%clk 0:01:46.7]} 20. Rxd7 {[%clk 0:02:06.8]} 20... Nxd7 {[%clk
0:01:47.6]} 21. Rd1 {[%clk 0:02:06.9]} 21... Nb6 {[%clk 0:01:47.2]} 22. Kf2
{[%clk 0:02:00.8]} 22... Kf8 {[%clk 0:01:46.9]} 23. Ke3 {[%clk 0:02:00.5]} 23...
f6 {[%clk 0:01:39.1]} 24. a4 {[%clk 0:01:34.1]} 24... a5 {[%clk 0:01:20.5]} 25.
bxa5 {[%clk 0:01:30.9]} 25... Rxa5 {[%clk 0:01:19.8]} 26. Rb1 {[%clk 0:01:31.3]}
26... Nc4+ {[%clk 0:00:59.6]} 27. Kd3 {[%clk 0:01:12.8]} 27... Nd6 {[%clk
0:00:46.4]} 28. Rb4 {[%clk 0:00:59.5]} 28... Ke7 {[%clk 0:00:44.4]} 29. Rd4
{[%clk 0:00:31.6]} 29... Kd7 {[%clk 0:00:37.7]} 30. Kc3 {[%clk 0:00:19.5]} 30...
Kc7 {[%clk 0:00:37.2]} 31. Kb3 {[%clk 0:00:17.9]} 31... Rc5 {[%clk 0:00:19.8]}
32. Rd1 {[%clk 0:00:15.7]} 32... b6 {[%clk 0:00:17.6]} 33. Re1 {[%clk
0:00:15.5]} 33... Nb7 {[%clk 0:00:17.4]} 34. e5 {[%clk 0:00:13.1]} 34... fxe5
{[%clk 0:00:17.3]} 35. fxe5 {[%clk 0:00:13.4]} 35... Kd7 {[%clk 0:00:15.4]} 36.
e6+ {[%clk 0:00:10.8]} 36... Ke7 {[%clk 0:00:15.5]} 37. Bh3 {[%clk 0:00:07.9]}
37... Nd6 {[%clk 0:00:14.7]} 38. Rf1 {[%clk 0:00:05.3]} 38... Rh5 {[%clk
0:00:15.2]} 39. Bg4 {[%clk 0:00:04.6]} 39... Rxh2 {[%clk 0:00:15.2]} 40. Rc1
{[%clk 0:00:02]} 40... c5 {[%clk 0:00:13.5]} 41. a5 {[%clk 0:00:02.6]} 41... c4+
{[%clk 0:00:11.4]} 42. Kb4 {[%clk 0:00:02.3]} 42... bxa5+ {[%clk 0:00:12.3]} 43.
Kxa5 {[%clk 0:00:02.4]} 43... Rg2 {[%clk 0:00:12.2]} 44. Rc3 {[%clk 0:00:02.5]}
44... h5 {[%clk 0:00:11.1]} 45. Bh3 {[%clk 0:00:02.2]} 45... Rb2 {[%clk
0:00:09.1]} 46. Ka6 {[%clk 0:00:01.2]} 46... Rb5 {[%clk 0:00:07.7]} 47. Bf1
{[%clk 0:00:01.6]} 47... Kxe6 {[%clk 0:00:04.9]} 48. Bxc4+ {[%clk 0:00:01.5]}
48... Kf6 {[%clk 0:00:02.5]} 0-1